bitfinex/quotes_SOLUSD_20250912
["timestamp","ask_amount","ask_price","bid_price","bid_amount"]
[1757660687248,5.56678559,238.45,238.41,14.68059225]
[1757660687551,5.56678559,238.45,238.44,26.0]
[1757660687753,34.44,238.45,238.41,14.68059225]
[1757660688145,48.03559401,238.45,238.44,26.0]
[1757660688561,48.03559401,238.45,238.43,4.19393222]
[1757660688771,48.03559401,238.45,238.44,26.0]
[1757660689756,13.07651551,238.44,238.4,26.0]
[1757660690169,34.4,238.43,238.38,26.0]
[1757660690354,34.38,238.42,238.39,0.69]
[1757660690556,34.38,238.42,238.4,4.19463087]
[1757660690738,5.56678559,238.45,238.4,4.19463087]
[1757660690934,34.38,238.44,238.4,4.19463087]
[1757660691847,34.38,238.44,238.41,0.03]
[1757660692046,13.59559401,238.44,238.42,26.0]
[1757660692248,34.34,238.43,238.42,26.0]
[1757660692443,13.59559401,238.42,238.41,0.03]
[1757660692644,53.5423796,238.42,238.41,0.03]
[1757660695050,47.97559401,238.42,238.41,0.03]
[1757660695567,53.5023796,238.42,238.41,0.03]
[1757660698167,19.1623796,238.42,238.41,0.03]
[1757660698344,13.59559401,238.42,238.41,0.03]
[1757660698734,4.22494665,238.51,238.41,0.75]
[1757660698947,13.59559401,238.49,238.41,0.75]
[1757660699165,13.59559401,238.47,238.41,0.75]
[1757660699660,13.59559401,238.47,238.41,26.75]
[1757660699864,13.59559401,238.47,238.42,4.194279]
[1757660700053,13.59559401,238.5,238.42,4.194279]
[1757660700239,13.59559401,238.5,238.44,26.0]
[1757660700444,34.26,238.49,238.44,26.0]
[1757660701052,13.59559401,238.55,238.45,26.72]
[1757660701275,34.24,238.48,238.45,26.72]
[1757660701469,13.59559401,238.51,238.45,26.72]
[1757660701675,13.59559401,238.49,238.45,26.0]
[1757660701842,34.24,238.48,238.45,30.19361927]
[1757660702047,13.59559401,238.51,238.45,4.91361927]
[1757660702253,13.59559401,238.51,238.46,0.72]
[1757660702452,34.22,238.5,238.47,0.72]
[1757660702658,26.12,238.49,238.48,0.72]
[1757660703463,34.2,238.49,238.48,0.72]
[1757660703956,34.2,238.49,238.48,4.91322375]
[1757660706973,34.16,238.49,238.48,4.91322375]
[1757660707139,34.16,238.49,238.46,4.19342479]
[1757660707340,34.16,238.49,238.47,0.72]
[1757660708375,34.16,238.49,238.46,4.19342479]
[1757660708548,13.59559401,238.56,238.49,26.0]
[1757660708743,13.59559401,238.54,238.49,26.0]
[1757660708942,13.59559401,238.54,238.5,4.19287211]
[1757660709667,13.59559401,238.54,238.5,4.91287211]
[1757660709873,0.06,238.58,238.51,0.72]
[1757660710044,56.05358434,238.57,238.5,4.19287211]
[1757660710839,8.37799033,238.56,238.5,4.19287211]
[1757660711243,8.37799033,238.56,238.49,26.0]
[1757660711971,13.59559401,238.54,238.49,4.19302108]
[1757660712196,13.59559401,238.52,238.51,26.0]
[1757660712347,34.06,238.52,238.51,26.72]
[1757660712764,13.65559401,238.58,238.52,26.0]
[1757660713069,13.59559401,238.56,238.53,4.19234477]
[1757660713273,13.59559401,238.56,238.52,26.0]
[1757660713566,0.06,238.58,238.52,30.19247245]
[1757660713741,0.06,238.58,238.53,0.72]
[1757660713944,34.04,238.57,238.54,0.72]
[1757660714475,34.04,238.57,238.55,0.72]
[1757660715369,13.59559401,238.57,238.56,4.19181757]
[1757660715571,47.61559401,238.57,238.56,4.19181757]
[1757660716092,0.06,238.58,238.57,26.0]
[1757660716249,0.06,238.58,238.57,26.72]
[1757660717154,34.04,238.58,238.57,30.91164186]
[1757660717851,47.63559401,238.58,238.55,4.19181811]
[1757660718263,47.63559401,238.58,238.56,26.0]
[1757660718859,47.63559401,238.58,238.56,26.72]
[1757660719257,47.63559401,238.58,238.57,4.19164186]
[1757660719571,13.65559401,238.58,238.57,4.19164186]
[1757660719774,34.0,238.58,238.57,4.91164186]
[1757660720355,0.06,238.58,238.57,4.91164186]
[1757660720679,34.0,238.58,238.57,4.91164186]
[1757660722057,34.0,238.58,238.57,4.19164186]
[1757660722273,33.98,238.58,238.56,26.0]
[1757660722475,33.98,238.58,238.56,26.72]
[1757660723373,33.98,238.58,238.56,30.19174939]
[1757660723685,33.98,238.58,238.57,4.91164186]
[1757660724684,0.06,238.58,238.57,4.91164186]
[1757660725090,30.42,238.58,238.57,4.91164186]
[1757660725457,0.13,238.59,238.58,26.0]
[1757660725661,0.06,238.61,238.58,0.72]
[1757660725891,0.06,238.61,238.59,4.91129049]
[1757660726382,0.06,238.61,238.6,0.72]
[1757660726688,0.06,238.61,238.56,29.35220696]
[1757660726887,0.06,238.61,238.56,26.0]
[1757660727461,0.03,238.64,238.57,33.8]
[1757660727783,0.03,238.64,238.61,4.19093918]
[1757660728085,0.03,238.64,238.61,14.66828715]
[1757660728382,34.32,238.73,238.64,26.0]
[1757660728878,34.32,238.73,238.65,0.72]
[1757660729179,34.32,238.72,238.65,0.72]
[1757660729780,13.59559401,238.76,238.68,26.0]
[1757660729971,13.59559401,238.76,238.68,26.72]
[1757660730163,0.1,238.79,238.69,26.0]
[1757660730363,0.1,238.79,238.69,26.72]
[1757660730563,0.1,238.79,238.7,0.72]
[1757660731372,34.4,238.79,238.7,0.72]
[1757660731758,35.09,238.79,238.71,4.18918352]
[1757660732179,35.09,238.79,238.72,0.72]
[1757660732663,13.59559401,238.78,238.67,0.72]
[1757660732982,0.69,238.77,238.69,26.0]
[1757660733166,13.59559401,238.75,238.69,26.0]
[1757660733372,0.69,238.74,238.65,4.1900961]
[1757660733587,57.41374111,238.79,238.64,0.72]
[1757660733588,13.59559401,238.72,238.64,0.72]
[1757660733784,34.28,238.71,238.64,0.72]
[1757660734081,34.26,238.72,238.65,4.19023674]
[1757660734285,13.59559401,238.76,238.68,26.0]
[1757660734463,34.26,238.72,238.69,0.72]
[1757660734783,34.26,238.74,238.69,0.72]
[1757660734987,14.28559401,238.73,238.68,26.0]
[1757660735174,14.28559401,238.73,238.65,15.38582861]
[1757660735175,0.69,238.72,238.65,4.91023674]
[1757660735579,47.83559401,238.71,238.65,4.91023674]
[1757660735971,13.59559401,238.69,238.5,13.59559401]
[1757660736283,13.59559401,238.72,238.62,0.72]
[1757660736463,13.59559401,238.7,238.62,0.72]
[1757660736889,0.69,238.69,238.59,26.72]
[1757660737286,0.69,238.69,238.6,0.72]
[1757660737785,0.69,238.69,238.57,0.72]
[1757660737988,13.59559401,238.67,238.58,4.19146617]
[1757660738174,0.69,238.66,238.58,4.19146617]
[1757660738366,13.59559401,238.64,238.58,4.19146617]
[1757660738693,13.59559401,238.64,238.59,26.0]
[1757660738893,0.69,238.63,238.59,26.0]
[1757660739480,0.69,238.63,238.6,4.19111483]
[1757660740167,34.18,238.62,238.61,26.0]
[1757660740472,34.16,238.62,238.61,26.0]
[1757660741392,34.85,238.62,238.6,26.0]
[1757660741591,14.28559401,238.61,238.55,4.19199329]
[1757660741804,13.59559401,238.59,238.55,4.19199329]
[1757660741974,34.16,238.58,238.56,26.0]
[1757660743067,34.16,238.57,238.56,26.0]
[1757660743588,34.16,238.57,238.51,4.29256614]
[1757660743589,13.59559401,238.56,238.51,4.29256614]
[1757660743892,13.59559401,238.54,238.51,0.1]
[1757660744090,13.59559401,238.54,238.51,4.29267599]
[1757660744295,14.28559401,238.54,238.51,4.29267599]
[1757660744495,14.28559401,238.54,238.51,26.1]
[1757660744676,0.69,238.53,238.51,26.1]
[1757660744990,48.42559401,238.52,238.51,26.13]
[1757660745200,48.42559401,238.52,238.51,0.13]
[1757660745579,14.28559401,238.52,238.51,0.13]
[1757660745788,48.40559401,238.52,238.51,0.13]
[1757660747721,14.28559401,238.52,238.51,0.13]
[1757660747914,48.38559401,238.52,238.51,0.13]
[1757660748592,14.28559401,238.52,238.51,0.13]
[1757660748798,48.36559401,238.52,238.51,0.13]
[1757660749282,14.28559401,238.52,238.51,0.13]
[1757660749599,13.59559401,238.52,238.51,0.13]
[1757660749768,14.28559401,238.52,238.51,0.13]
[1757660749972,48.34559401,238.52,238.51,0.13]
[1757660750592,22.64207705,238.52,238.51,0.13]
[1757660750792,56.68207705,238.52,238.51,0.13]
[1757660751280,22.64207705,238.52,238.51,0.13]
[1757660751480,14.28559401,238.52,238.51,0.13]
[1757660751696,13.59559401,238.52,238.51,0.13]
[1757660751899,48.30559401,238.52,238.51,0.13]
[1757660753076,47.61559401,238.52,238.51,0.13]
[1757660754502,47.57559401,238.52,238.51,0.13]
[1757660756077,48.29559401,238.52,238.51,0.13]
[1757660757588,179.39559401,238.52,238.51,0.13]
[1757660757781,187.75207705,238.52,238.51,0.13]
[1757660758199,191.94459759,238.52,238.51,0.13]
[1757660758590,191.88459759,238.52,238.51,0.13]
[1757660758989,60.78459759,238.52,238.51,0.13]
[1757660759391,18.50811455,238.52,238.51,0.13]
[1757660759596,60.78459759,238.52,238.51,0.13]
[1757660760605,58.00626906,238.52,238.51,0.13]
[1757660760904,24.08626906,238.52,238.51,0.13]
[1757660761096,58.00626906,238.52,238.51,0.13]
[1757660762584,57.96626906,238.52,238.51,0.13]
[1757660763290,17.78811455,238.52,238.48,0.03]
[1757660763506,13.59559401,238.49,238.48,0.03]
[1757660763690,47.45559401,238.49,238.48,0.03]
[1757660764614,51.64864193,238.49,238.48,0.03]
[1757660765813,57.20679644,238.49,238.48,0.03]
[1757660766024,57.92679644,238.49,238.48,0.03]
[1757660766193,57.20679644,238.49,238.48,0.03]
[1757660766514,57.92679644,238.49,238.48,0.03]
[1757660767621,57.92679644,238.49,238.46,0.03]
[1757660767622,39.59559401,238.47,238.46,0.03]
[1757660767795,83.1671481,238.47,238.46,0.03]
[1757660768196,83.8871481,238.47,238.46,0.03]
[1757660768515,103.8871481,238.47,238.46,0.03]
[1757660768815,19.17374852,238.42,238.41,0.13]
[1757660768990,52.97374852,238.42,238.41,1e-08]
[1757660769190,53.69374852,238.42,238.41,1e-08]
[1757660769616,19.89374852,238.42,238.41,1e-08]
[1757660769917,24.08802752,238.42,238.41,1e-08]
[1757660770234,57.88802752,238.42,238.41,1e-08]
[1757660770520,54.5169663,238.42,238.41,1e-08]
[1757660772220,51.56987301,238.42,238.41,1e-08]
[1757660773220,17.78987301,238.42,238.41,1e-08]
[1757660773402,47.35559401,238.42,238.41,0.71000001]
[1757660773719,47.35559401,238.42,238.41,1e-08]
[1757660774127,13.59559401,238.42,238.41,1e-08]
[1757660774305,47.35559401,238.42,238.41,0.71000001]
[1757660774509,47.35559401,238.42,238.41,1e-08]
[1757660774718,13.59559401,238.42,238.41,1e-08]
[1757660774915,47.33559401,238.42,238.41,1e-08]
[1757660775806,49.5426873,238.42,238.41,1e-08]
[1757660777021,50.2626873,238.42,238.41,1e-08]
[1757660779034,53.7369663,238.42,238.41,1e-08]
[1757660779413,53.6969663,238.42,238.41,1e-08]
[1757660779612,54.4169663,238.42,238.41,1e-08]
[1757660779813,20.7169663,238.42,238.41,1e-08]
[1757660780113,54.3969663,238.42,238.41,1e-08]
[1757660780508,20.7169663,238.42,238.41,1e-08]
[1757660780704,54.3969663,238.42,238.41,1e-08]
[1757660780920,17.78987301,238.42,238.41,1e-08]
[1757660781211,53.6769663,238.42,238.41,1e-08]
[1757660781430,54.3769663,238.42,238.41,1e-08]
[1757660781611,54.3769663,238.42,238.39,0.03]
[1757660781612,13.59559401,238.4,238.39,0.03]
[1757660781811,75.4626873,238.4,238.39,0.03]
[1757660782046,76.1826873,238.4,238.39,0.03]
[1757660782926,41.8026873,238.4,238.39,0.03]
[1757660783235,79.63731817,238.4,238.39,0.03]
[1757660784336,80.35731817,238.4,238.39,0.03]
[1757660784834,45.99731817,238.4,238.39,0.03]
[1757660785037,79.63731817,238.4,238.39,0.03]
[1757660785221,15.8026873,238.39,238.38,0.03]
[1757660785617,39.59559401,238.37,238.36,1e-08]
[1757660785824,75.4226873,238.37,238.36,1e-08]
[1757660786034,76.1026873,238.37,238.36,1e-08]
[1757660786635,41.8026873,238.37,238.36,1e-08]
[1757660786817,75.4026873,238.37,238.36,1e-08]
[1757660787139,79.59784608,238.37,238.36,1e-08]
[1757660787313,83.39163185,238.37,238.36,1e-08]
[1757660787940,83.37163185,238.37,238.36,1e-08]
[1757660788236,83.37286342,238.37,238.36,1e-08]
[1757660788943,13.59559401,238.32,238.31,1e-08]
[1757660789123,56.69374357,238.32,238.31,1e-08]
[1757660789329,69.96448893,238.32,238.31,1e-08]
[1757660790442,80.45458627,238.32,238.22,0.68]
[1757660790650,41.8026873,238.28,238.22,0.68]
[1757660790839,84.21106046,238.28,238.22,0.68]
[1757660791017,61.3260365,238.28,238.22,0.68]
[1757660791223,53.57943062,238.28,238.22,0.68]
[1757660791725,19.99943062,238.28,238.22,0.68]
[1757660792122,53.57943062,238.28,238.22,0.68]
[1757660792759,53.55943062,238.28,238.22,0.68]
[1757660793646,19.99943062,238.28,238.22,0.68]
[1757660793820,53.53943062,238.28,238.22,0.68]
[1757660794024,17.79233733,238.28,238.27,0.88]
[1757660794246,47.13559401,238.28,238.27,0.88]
[1757660794955,13.59559401,238.28,238.27,0.88]
[1757660795534,47.13559401,238.28,238.27,0.88]
[1757660796826,13.59559401,238.28,238.27,0.88]
[1757660797153,47.13559401,238.28,238.27,0.88]
[1757660797325,13.59559401,238.28,238.27,0.88]
[1757660797525,47.11559401,238.28,238.27,0.88]
[1757660798338,13.59559401,238.28,238.27,0.88]
[1757660798535,47.09559401,238.28,238.27,0.88]
[1757660799952,49.3026873,238.28,238.27,0.2]
[1757660801046,13.59559401,238.28,238.27,0.88]
[1757660801251,47.09559401,238.28,238.27,0.88]
[1757660801452,13.59559401,238.28,238.27,0.88]
[1757660801627,47.07559401,238.28,238.27,0.88]
[1757660802429,13.59559401,238.28,238.27,0.88]
[1757660802624,47.09559401,238.28,238.27,0.88]
[1757660802839,47.07559401,238.28,238.27,0.88]
[1757660803331,0.06,238.31,238.27,31.07691946]
[1757660803543,0.06,238.42,238.3,26.0]
[1757660803752,33.58,238.41,238.31,26.68]
[1757660803938,0.06,238.36,238.32,0.68]
[1757660804138,33.58,238.35,238.32,0.68]
[1757660804448,33.6,238.34,238.32,0.68]
[1757660804651,33.6,238.34,238.32,13.26679645]
[1757660804854,33.6,238.34,238.33,0.68]
[1757660805040,33.6,238.34,238.33,30.87586287]
[1757660805667,47.19559401,238.34,238.33,30.87586287]
[1757660805844,47.19559401,238.34,238.33,0.68]
[1757660806046,47.19559401,238.34,238.32,26.0]
[1757660806430,47.17559401,238.33,238.3,0.68]
[1757660806661,47.17559401,238.33,238.25,23.08247299]
[1757660806662,33.58,238.32,238.27,4.39688766]
[1757660806865,33.58,238.32,238.3,0.68]
[1757660807031,33.58,238.32,238.28,26.0]
[1757660807032,13.59559401,238.31,238.28,30.19660718]
[1757660807356,47.17559401,238.3,238.29,0.68]
[1757660807550,13.59559401,238.3,238.29,0.68]
[1757660807770,47.17559401,238.3,238.29,0.68]
[1757660808135,13.59559401,238.3,238.29,0.68]
[1757660808355,47.15559401,238.3,238.29,26.68]
[1757660808737,13.59559401,238.3,238.29,0.68]
[1757660809152,47.15559401,238.3,238.29,0.68]
[1757660810056,0.06,238.36,238.3,30.1963911]
[1757660810351,13.59559401,238.34,238.31,0.68]
[1757660810551,13.59559401,238.34,238.32,0.68]
[1757660810858,13.59559401,238.32,238.3,30.1963911]
[1757660811042,47.13559401,238.31,238.3,30.1963911]
[1757660811238,13.59559401,238.31,238.3,30.1963911]
[1757660811440,47.13559401,238.31,238.3,30.8763911]
[1757660811848,13.59559401,238.31,238.3,30.8763911]
[1757660812169,47.11559401,238.31,238.3,26.0]
[1757660812369,13.59559401,238.3,238.29,30.19649949]
[1757660812535,47.11559401,238.3,238.29,30.19649949]
[1757660813049,47.11559401,238.3,238.29,30.87649949]
[1757660813465,47.09559401,238.3,238.29,30.87649949]
[1757660813835,47.09559401,238.3,238.29,26.68]
[1757660814974,13.59559401,238.3,238.29,30.8765672]
[1757660815339,47.07559401,238.3,238.29,30.8765672]
[1757660816464,0.06,238.36,238.29,4.8765672]
[1757660816663,0.06,238.36,238.3,0.68]
[1757660816857,13.59559401,238.34,238.3,0.68]
[1757660817168,33.48,238.33,238.31,0.68]
[1757660817462,0.06,238.36,238.32,0.68]
[1757660817667,13.59559401,238.34,238.32,0.68]
[1757660818363,0.06,238.36,238.32,4.87591774]
[1757660818551,13.59559401,238.34,238.32,4.87591774]
[1757660818965,33.44,238.33,238.32,4.87591774]
[1757660819160,47.03559401,238.33,238.32,4.87591774]
[1757660819539,13.59559401,238.33,238.32,4.87591774]
[1757660820248,47.03559401,238.33,238.32,4.87591774]
[1757660820840,13.59559401,238.32,238.31,30.19621501]
[1757660821252,47.01559401,238.32,238.31,30.19621501]
[1757660821447,47.01559401,238.32,238.31,4.19621501]
[1757660821761,13.59559401,238.31,238.29,30.2264186]
[1757660822664,13.59559401,238.31,238.29,30.9064186]
[1757660824066,13.59559401,238.31,238.29,30.2264186]
[1757660824284,13.59559401,238.35,238.3,4.8763911]
[1757660824444,13.59559401,238.35,238.33,26.0]
[1757660824644,46.99559401,238.34,238.33,26.0]
[1757660825159,46.99559401,238.34,238.33,0.68]
[1757660825557,46.99559401,238.34,238.33,26.68]
[1757660826269,46.99559401,238.34,238.33,30.87586287]
[1757660826775,46.99559401,238.34,238.33,26.0]
[1757660827280,13.59559401,238.34,238.33,26.0]
[1757660827444,13.59559401,238.34,238.33,30.19586287]
[1757660827649,46.97559401,238.34,238.33,30.87586287]
[1757660829463,46.97559401,238.34,238.33,30.19586287]
[1757660829989,46.97559401,238.34,238.33,26.0]
[1757660830651,13.59559401,238.33,238.29,0.71]
[1757660830851,13.59559401,238.33,238.29,0.03]
[1757660830852,13.59559401,238.31,238.29,0.03]
[1757660831175,0.06,238.36,238.3,0.68]
[1757660831387,13.59559401,238.34,238.31,4.19621501]
[1757660831680,13.59559401,238.33,238.32,0.68]
[1757660832187,46.95559401,238.33,238.32,0.68]
[1757660833378,47.61559401,238.33,238.3,26.0]
[1757660833556,13.59559401,238.32,238.3,26.0]
[1757660833761,13.59559401,238.32,238.29,0.03]
[1757660833762,13.59559401,238.3,238.29,0.03]
[1757660833983,17.04287369,238.3,238.29,0.03]
[1757660834207,17.70287369,238.3,238.29,0.03]
[1757660835595,21.89926479,238.3,238.29,0.03]
[1757660836294,18.45198511,238.3,238.29,0.03]
[1757660836606,60.2046032,238.3,238.29,0.03]
[1757660836814,26.8446032,238.3,238.29,0.03]
[1757660837003,60.2246032,238.3,238.29,0.03]
[1757660837385,60.2046032,238.3,238.29,0.03]
[1757660837899,18.45198511,238.3,238.29,0.03]
[1757660838089,26.8446032,238.3,238.29,0.03]
[1757660838513,13.59559401,238.31,238.29,0.03]
[1757660838685,46.95559401,238.3,238.29,0.03]
[1757660839919,60.2046032,238.3,238.29,0.03]
[1757660841097,26.8446032,238.3,238.29,0.03]
[1757660841302,51.79198511,238.3,238.29,0.03]
[1757660841508,60.1846032,238.3,238.29,0.03]
[1757660842834,26.8446032,238.3,238.29,0.03]
[1757660842986,46.93559401,238.3,238.29,0.03]
[1757660843818,13.59559401,238.3,238.29,0.03]
[1757660843983,60.1646032,238.3,238.29,0.03]
[1757660844716,59.5446032,238.3,238.29,0.03]
[1757660845013,26.1846032,238.3,238.29,0.03]
[1757660845192,59.5246032,238.3,238.29,0.03]
[1757660845394,60.1746032,238.3,238.29,0.03]
[1757660846991,51.76198511,238.3,238.29,0.03]
[1757660847191,60.1546032,238.3,238.29,0.03]
[1757660847895,63.2840445,238.3,238.29,0.03]
[1757660848213,13.59559401,238.29,238.27,0.2]
[1757660848420,55.3082121,238.28,238.27,0.2]
[1757660848715,55.9582121,238.28,238.27,0.2]
[1757660849335,60.15495542,238.28,238.27,0.2]
[1757660850426,60.15495542,238.28,238.26,0.03]
[1757660850427,13.59559401,238.27,238.26,0.03]
[1757660850834,14.24559401,238.27,238.26,0.03]
[1757660851328,18.44251347,238.27,238.26,0.03]
[1757660852731,21.5698091,238.27,238.26,0.03]
[1757660855833,21.5698091,238.27,238.24,0.03]
[1757660855834,32.06210775,238.27,238.24,0.03]
[1757660856024,21.9882121,238.25,238.24,0.03]
[1757660856229,25.11550773,238.25,238.24,0.03]
[1757660856407,22.6382121,238.25,238.24,0.03]
[1757660856611,25.76220024,238.25,238.24,0.03]
[1757660857540,39.59559401,238.22,238.14,0.7]
[1757660857731,21.9882121,238.18,238.14,0.7]
[1757660857911,51.03409934,238.18,238.11,0.1]
[1757660858114,51.03409934,238.18,238.12,0.7]
[1757660858115,62.57062266,238.18,238.12,0.7]
[1757660858312,60.09671743,238.18,238.12,0.7]
[1757660858637,55.15960005,238.18,238.11,0.1]
[1757660859119,51.70409934,238.18,238.12,0.7]
[1757660859318,17.79409934,238.18,238.11,0.1]
[1757660859506,54.50960005,238.18,238.15,0.7]
[1757660860348,21.24960005,238.18,238.15,0.7]
[1757660861135,21.24960005,238.18,238.11,0.1]
[1757660861136,54.50960005,238.18,238.12,0.7]
[1757660861542,21.24960005,238.18,238.12,0.7]
[1757660861831,54.50960005,238.18,238.12,0.7]
[1757660862925,54.50960005,238.18,238.11,0.1]
[1757660862926,21.24960005,238.18,238.11,0.1]
[1757660863125,54.50960005,238.18,238.15,0.7]
[1757660863327,51.05409934,238.18,238.15,0.7]
[1757660863519,54.50960005,238.18,238.15,0.7]
[1757660863714,54.48960005,238.18,238.15,0.7]
[1757660864709,51.03409934,238.18,238.15,0.7]
[1757660864918,54.48960005,238.18,238.15,0.7]
[1757660865329,55.13960005,238.18,238.11,0.8]
[1757660865535,17.05109472,238.12,238.11,0.1]
[1757660865746,50.27109472,238.12,238.11,0.1]
[1757660866923,13.59559401,238.12,238.11,4.99973961]
[1757660867229,46.91559401,238.12,238.11,0.8]
[1757660868132,13.59559401,238.12,238.11,0.8]
[1757660868445,46.91559401,238.12,238.11,0.8]
[1757660868742,13.59559401,238.12,238.11,0.8]
[1757660869245,46.89559401,238.12,238.11,0.8]
[1757660869546,13.59559401,238.12,238.11,0.8]
[1757660870041,46.89559401,238.12,238.11,0.8]
[1757660871143,46.87559401,238.12,238.11,0.8]
[1757660873736,13.59559401,238.12,238.11,0.8]
[1757660873938,46.83559401,238.12,238.11,0.8]
[1757660874729,13.59559401,238.12,238.11,0.8]
[1757660874935,46.83559401,238.12,238.11,0.8]
[1757660875243,46.83559401,238.12,238.11,0.92]
[1757660875636,13.59559401,238.12,238.11,0.92]
[1757660875835,46.81559401,238.12,238.11,0.92]
[1757660876838,13.59559401,238.12,238.11,0.92]
[1757660877049,46.81559401,238.12,238.11,0.92]
[1757660877348,13.59559401,238.12,238.11,5.11973961]
[1757660877652,46.79559401,238.12,238.11,5.11973961]
[1757660878633,46.79559401,238.12,238.11,0.92]
[1757660879654,13.59559401,238.12,238.11,0.92]
[1757660879951,46.77559401,238.12,238.11,0.92]
[1757660880842,13.59559401,238.12,238.11,0.92]
[1757660881855,46.75559401,238.12,238.11,0.92]
[1757660882660,13.59559401,238.12,238.11,5.11973961]
[1757660882832,46.73559401,238.12,238.11,5.11973961]
[1757660883339,13.59559401,238.12,238.11,5.11973961]
[1757660883526,46.73559401,238.12,238.11,5.11973961]
[1757660883935,0.03,238.17,238.14,26.0]
[1757660884136,0.03,238.17,238.15,0.66]
[1757660884137,33.14,238.16,238.15,0.66]
[1757660884341,46.73559401,238.16,238.15,0.66]
[1757660885038,46.73559401,238.16,238.15,4.85903422]
[1757660885643,13.59559401,238.15,238.12,0.66]
[1757660885959,13.59559401,238.13,238.11,31.07970557]
[1757660886257,46.87559401,238.12,238.11,31.07970557]
[1757660886649,46.87559401,238.12,238.11,0.22]
[1757660890054,47.55559401,238.12,238.11,0.22]
[1757660890263,46.87559401,238.12,238.11,0.22]
[1757660890846,13.59559401,238.12,238.11,0.22]
[1757660891169,46.83559401,238.12,238.11,0.22]
[1757660892742,47.51559401,238.12,238.11,0.22]
[1757660892949,13.59559401,238.12,238.11,0.22]
[1757660893350,46.79559401,238.12,238.11,0.22]
[1757660893555,13.59559401,238.12,238.11,0.22]
[1757660893764,46.79559401,238.12,238.11,0.22]
[1757660894746,46.77559401,238.12,238.11,0.22]
[1757660895367,13.59559401,238.12,238.11,0.22]
[1757660895780,46.77559401,238.12,238.11,0.22]
[1757660895968,13.59559401,238.12,238.11,5.07973961]
[1757660896176,46.77559401,238.12,238.11,5.07973961]
[1757660897758,13.59559401,238.12,238.11,5.07973961]
[1757660897959,46.77559401,238.12,238.11,5.07973961]
[1757660898463,13.59559401,238.12,238.11,5.07973961]
[1757660898663,0.03,238.17,238.14,26.0]
[1757660898983,13.59559401,238.15,238.14,26.0]
[1757660899286,33.18,238.15,238.14,26.66]
[1757660901072,0.03,238.17,238.16,26.0]
[1757660901277,46.80559401,238.17,238.16,26.0]
[1757660901479,46.80559401,238.17,238.16,26.66]
[1757660901987,46.76559401,238.17,238.16,26.66]
[1757660902184,46.76559401,238.17,238.16,30.85885791]
[1757660904685,13.62559401,238.17,238.16,30.85885791]
[1757660904860,46.72559401,238.17,238.16,30.85885791]
[1757660905970,46.72559401,238.17,238.16,26.0]
[1757660906171,46.72559401,238.17,238.16,30.19885791]
[1757660906374,46.72559401,238.17,238.16,30.87885791]
[1757660906981,46.70559401,238.17,238.16,30.87885791]
[1757660907874,46.70559401,238.17,238.16,30.19885791]
[1757660908383,46.68559401,238.17,238.16,30.19885791]
[1757660908581,13.59559401,238.16,238.14,4.19908903]
[1757660908767,46.67559401,238.15,238.14,4.19908903]
[1757660908966,13.59559401,238.14,238.13,26.0]
[1757660911559,13.59559401,238.14,238.13,30.19938688]
[1757660912377,13.62559401,238.17,238.14,26.0]
[1757660912697,33.06,238.16,238.14,26.0]
[1757660913189,14.33559401,238.17,238.14,26.0]
[1757660913491,33.06,238.16,238.14,26.0]
[1757660915486,33.77,238.16,238.13,26.0]
[1757660915682,13.59559401,238.15,238.14,26.0]
[1757660917414,13.59559401,238.15,238.13,26.0]
[1757660917590,13.59559401,238.13,238.11,0.22]
[1757660917770,46.65559401,238.12,238.11,0.22]